fUSD/lending_fUSD_20260408
["ID","MTS","AMOUNT","RATE_DAILY","PERIOD"]
[420065429,1775646638562,-476.49221648,8.755e-05,2]
[420065430,1775646638573,-500.0,8.755e-05,2]
[420065431,1775646638583,-500.0,8.755e-05,2]
[420065432,1775646638593,-500.0,8.755e-05,2]
[420065433,1775646638603,-500.0,8.755e-05,2]
[420065434,1775646638613,-500.0,8.755e-05,2]
[420065435,1775646638624,-500.0,8.755e-05,2]
[420065436,1775646638635,-500.0,8.755e-05,2]
[420065437,1775646638645,-500.0,8.755e-05,2]
[420065438,1775646638656,-500.0,8.755e-05,2]
[420065439,1775646638667,-500.0,8.755e-05,2]
[420065440,1775646638677,-500.0,8.755e-05,2]
[420065441,1775646638687,-500.0,8.755e-05,2]
[420065442,1775646638698,-500.0,8.755e-05,2]
[420065443,1775646638708,-500.0,8.755e-05,2]
[420065444,1775646638718,-500.0,8.755e-05,2]
[420065445,1775646638734,-350.00000004,8.755e-05,2]
[420065446,1775646638744,-500.0,8.755e-05,2]
[420065447,1775646638754,-500.0,8.755e-05,2]
[420065448,1775646638765,-6586.93748146,8.756e-05,2]
[420065449,1775646638775,-333110.1462972,8.756e-05,2]
[420065450,1775646638786,-14114.9,8.756e-05,2]
[420065451,1775646638796,-4522.12,8.756e-05,2]
[420065452,1775646638806,-1211.11,8.756e-05,2]
[420065453,1775646638816,-153.43410661,8.758e-05,2]
[420065454,1775646638827,-1575.11,8.758e-05,2]
[420065455,1775646638838,-43419.25,8.758e-05,2]
[420065456,1775646638848,-9999.99,8.758e-05,2]
[420065457,1775646638858,-9999.99,8.758e-05,2]
[420065458,1775646638868,-500.0,8.759e-05,2]
[420065459,1775646638879,-9999.99,8.759e-05,2]
[420065460,1775646638889,-8464.87,8.759e-05,2]
[420065461,1775646638899,-727.93,8.759e-05,2]
[420065462,1775646638910,-7611.53,8.759e-05,2]
[420065463,1775646638920,-219963.48,8.759e-05,2]
[420065464,1775646638930,-499.99,8.759e-05,2]
[420065465,1775646638939,-2176.34,8.759e-05,2]
[420065466,1775646638949,-5507.95,8.759e-05,2]
[420065467,1775646638959,-195.0,8.759e-05,2]
[420065468,1775646638969,-684.0,8.763e-05,2]
[420065469,1775646638979,-1652.0,8.777e-05,2]
[420065470,1775646638989,-368.0,8.777e-05,2]
[420065471,1775646639000,-1884.0,8.781e-05,2]
[420065472,1775646639010,-1817.0,8.794e-05,2]
[420065473,1775646639020,-342.0,8.794e-05,2]
[420065474,1775646639031,-150.99,8.798e-05,2]
[420065475,1775646639041,-9999.99,8.798e-05,2]
[420065476,1775646639051,-999.99,8.798e-05,2]
[420065477,1775646639062,-299.99,8.798e-05,2]
[420065478,1775646639072,-313.15,8.798e-05,2]
[420065479,1775646639082,-9999.99,8.798e-05,2]
[420065480,1775646639093,-5947.35,8.798e-05,2]
[420065481,1775646639103,-518.32,8.798e-05,2]
[420065482,1775646639113,-351.58,8.798e-05,2]
[420065483,1775646639123,-1191.35,8.798e-05,2]
[420065484,1775646639132,-150.99,8.798e-05,2]
[420065485,1775646639142,-1613.0,8.798e-05,2]
[420065486,1775646639151,-150.0,8.799e-05,2]
[420065487,1775646639161,-1303.81351361,8.799e-05,2]
[420065488,1775646639172,-150.0,8.799e-05,2]
[420065489,1775646639182,-1463.0,8.812e-05,2]
[420065490,1775646639194,-373.0,8.812e-05,2]
[420065491,1775646639204,-1863.0,8.816e-05,2]
[420065492,1775646639214,-6527.414,8.829e-05,2]
[420065493,1775646639227,-401.926,8.829e-05,2]
[420065494,1775646639238,-1493.0,8.829e-05,2]
[420065495,1775646639248,-166.0,8.829e-05,2]
[420065496,1775646639259,-1163.0,8.847e-05,2]
[420065497,1775646639269,-150.0,8.873e-05,2]
[420065498,1775646639279,-500.0,8.873e-05,2]
[420065499,1775646639291,-500.0,8.873e-05,2]
[420065500,1775646639301,-500.0,8.873e-05,2]
[420065501,1775646639311,-500.0,8.873e-05,2]
[420065502,1775646639322,-500.0,8.873e-05,2]
[420065503,1775646639334,-500.0,8.873e-05,2]
[420065504,1775646639346,-500.0,8.873e-05,2]
[420065505,1775646639358,-500.0,8.873e-05,2]
[420065506,1775646639368,-500.3477331,8.873e-05,2]
[420065507,1775646639379,-500.0,8.873e-05,2]
[420065508,1775646639390,-500.0,8.873e-05,2]
[420065509,1775646639400,-500.0,8.873e-05,2]
[420065510,1775646639411,-500.0,8.873e-05,2]
[420065511,1775646639422,-150.0,8.876e-05,2]
[420065512,1775646639433,-6805.0,8.877e-05,2]
[420065513,1775646639443,-35276.0,8.877e-05,2]
[420065514,1775646639454,-151.0,8.896e-05,2]
[420065515,1775646639465,-151.0,8.896e-05,2]
[420065516,1775646639475,-151.0,8.896e-05,2]
[420065517,1775646639486,-151.0,8.896e-05,2]
[420065518,1775646639496,-151.0,8.896e-05,2]
[420065519,1775646639507,-151.0,8.896e-05,2]
[420065520,1775646639518,-958.28926477,8.899e-05,2]
[420065521,1775646639528,-16083.0371967,8.899e-05,2]
[420065522,1775646639539,-1500000.0,8.899e-05,2]
[420065523,1775646639549,-500.0,8.899e-05,2]
[420065524,1775646639560,-150.0,8.9e-05,2]
[420065525,1775646639569,-501.73893264,8.923e-05,2]
[420065526,1775646639580,-40445.8838867,8.947e-05,2]
[420065527,1775646639591,-4008.46212822,9.004e-05,2]
[420065528,1775646639601,-2122.51,9.014e-05,2]
[420065529,1775646639611,-33041.7805,9.033e-05,2]
[420065532,1775646639623,-500.0,9.033e-05,2]
[420065534,1775646639634,-2722.77779398,9.04e-05,2]
[420065536,1775646639644,-441.0,9.042e-05,2]
[420065538,1775646639655,-222.0,9.06e-05,2]
[420065539,1775646639666,-979.0,9.069e-05,2]
[420065540,1775646639676,-349.0,9.078e-05,2]
[420065541,1775646639687,-867.0,9.087e-05,2]
[420065542,1775646639697,-686.0,9.105e-05,2]
[420065543,1775646639707,-10000.0,9.166e-05,2]
[420065544,1775646639718,-500.0,9.181e-05,2]
[420065545,1775646639728,-2122.51,9.271e-05,2]
[420065546,1775646639738,-500.0,9.307e-05,2]
[420065547,1775646639749,-1000.87166627,9.421e-05,2]
[420065548,1775646639760,-1000.0,9.421e-05,2]
[420065549,1775646639771,-1000.0,9.421e-05,2]
[420065550,1775646639782,-1000.0,9.421e-05,2]
[420065551,1775646639792,-1000.0,9.421e-05,2]
[420065552,1775646639802,-1000.0,9.421e-05,2]
[420065554,1775646639813,-1000.54232895,9.421e-05,2]
[420065556,1775646639824,-500.0,9.421e-05,2]
[420065558,1775646639834,-550.3869963,9.421e-05,2]
[420065560,1775646639845,-853.62967572,9.421e-05,2]
[420065561,1775646639855,-193.0,9.46e-05,2]
[420065562,1775646639865,-250.0,9.46e-05,2]
[420065563,1775646639875,-193.0,9.474e-05,2]
[420065564,1775646639896,-5000.0,9.474e-05,2]
[420065565,1775646639909,-250.0,9.48e-05,2]
[420065566,1775646639920,-5000.0,9.48e-05,2]
[420065567,1775646639931,-151.0,9.482e-05,2]
[420065568,1775646639943,-420.0,9.486e-05,2]
[420065569,1775646639953,-1680.0,9.486e-05,2]
[420065570,1775646639963,-420.0,9.486e-05,2]
[420065571,1775646639974,-151.0,9.496e-05,2]
[420065572,1775646639984,-2122.51,9.529e-05,2]
[420065573,1775646639994,-255.0,9.629e-05,2]
[420065574,1775646640005,-2122.51,9.786e-05,2]
[420065576,1775646640015,-1500.0,9.968e-05,2]
[420065578,1775646640025,-1000.0,9.968e-05,2]
[420065579,1775646640035,-201.0,9.989e-05,2]
[420065580,1775646640046,-201.0,9.989e-05,2]
[420065581,1775646640056,-201.0,9.989e-05,2]
[420065582,1775646640067,-201.0,9.989e-05,2]
[420065583,1775646640077,-312.54243251,0.0001,2]
[420065584,1775646640088,-312.54243251,0.0001,2]
[420065585,1775646640097,-312.54243251,0.0001,2]
[420065586,1775646640107,-364.24850735,0.0001,2]
[420065587,1775646640117,-163.6276954,0.0001,2]
[420065588,1775646640128,-500.0,0.0001,2]
[420065589,1775646640138,-500.0,0.0001,2]
[420065590,1775646640147,-500.0,0.0001,2]
[420065591,1775646640157,-500.0,0.0001,2]
[420065592,1775646640167,-151.0,0.0001,2]
[420065593,1775646640178,-500.0,0.0001,2]
[420065594,1775646640188,-151.0,0.0001,2]
[420065595,1775646640198,-500.0,0.0001,2]
[420065596,1775646640209,-151.0,0.0001,2]
[420065597,1775646640218,-500.0,0.0001,2]
[420065598,1775646640229,-151.0,0.0001,2]
[420065599,1775646640239,-500.0,0.0001,2]
[420065600,1775646640250,-151.0,0.0001,2]
[420065601,1775646640260,-500.0,0.0001,2]
[420065602,1775646640271,-151.0,0.0001,2]
[420065603,1775646640282,-500.0,0.0001,2]
[420065604,1775646640293,-151.0,0.0001,2]
[420065605,1775646640303,-500.0,0.0001,2]
[420065606,1775646640314,-151.0,0.0001,2]
[420065607,1775646640325,-500.0,0.0001,2]
[420065608,1775646640336,-151.0,0.0001,2]
[420065609,1775646640346,-500.0,0.0001,2]
[420065610,1775646640356,-151.0,0.0001,2]
[420065611,1775646640368,-500.0,0.0001,2]
[420065612,1775646640379,-500.0,0.0001,2]
[420065613,1775646640390,-151.0,0.0001,2]
[420065614,1775646640400,-500.0,0.0001,2]
[420065615,1775646640410,-500.0,0.0001,2]
[420065616,1775646640421,-151.0,0.0001,2]
[420065617,1775646640432,-500.0,0.0001,2]
[420065618,1775646640442,-151.0,0.0001,2]
[420065619,1775646640453,-151.0,0.0001,2]
[420065620,1775646640464,-500.0,0.0001,2]
[420065621,1775646640475,-151.0,0.0001,2]
[420065622,1775646640486,-151.0,0.0001,2]
[420065623,1775646640496,-500.0,0.0001,2]
[420065624,1775646640506,-151.0,0.0001,2]
[420065625,1775646640516,-151.0,0.0001,2]
[420065626,1775646640526,-500.0,0.0001,2]
[420065627,1775646640536,-151.0,0.0001,2]
[420065628,1775646640546,-500.0,0.0001,2]
[420065629,1775646640557,-151.0,0.0001,2]
[420065630,1775646640567,-500.0,0.0001,2]
[420065631,1775646640579,-151.0,0.0001,2]
[420065632,1775646640589,-500.0,0.0001,2]
[420065633,1775646640600,-151.0,0.0001,2]
[420065634,1775646640611,-500.0,0.0001,2]
[420065635,1775646640621,-151.0,0.0001,2]
[420065636,1775646640631,-500.0,0.0001,2]
[420065637,1775646640642,-151.0,0.0001,2]
[420065638,1775646640653,-500.0,0.0001,2]
[420065639,1775646640663,-151.0,0.0001,2]
[420065640,1775646640674,-500.0,0.0001,2]
[420065641,1775646640685,-151.0,0.0001,2]
[420065642,1775646640696,-500.0,0.0001,2]
[420065643,1775646640712,-151.0,0.0001,2]
[420065644,1775646640722,-500.0,0.0001,2]
[420065645,1775646640734,-151.0,0.0001,2]
[420065646,1775646640744,-151.0,0.0001,2]
[420065647,1775646640755,-151.0,0.0001,2]
[420065648,1775646640765,-151.0,0.0001,2]
[420065649,1775646640775,-151.0,0.0001,2]
[420065650,1775646640786,-151.0,0.0001,2]
[420065651,1775646640796,-151.0,0.0001,2]
[420065652,1775646640807,-151.0,0.0001,2]
[420065653,1775646640817,-1199.20597017,0.0001,2]
[420065654,1775646640828,-151.0,0.0001,2]
[420065655,1775646640839,-151.0,0.0001,2]
[420065656,1775646640849,-342.85235816,0.0001,2]
[420065657,1775646640859,-489.18139785,0.0001,2]
[420065658,1775646640871,-17815.67883391,0.0001,2]
[420065659,1775646640881,-348.68212697,0.0001,2]
[420065660,1775646640890,-261.69532138,0.000101,2]
[420065661,1775646640900,-172.7571,0.000104,2]
[420065662,1775646640911,-587.0,0.00010435,2]
[420065663,1775646640920,-2351.0,0.00010435,2]
[420065664,1775646640932,-370.0,0.00010435,2]
[420065665,1775646640942,-2000.0,0.00010516,2]
[420065666,1775646640952,-433.0,0.00010592,2]
[420065667,1775646640962,-4041803.84281773,0.000107,2]
[420065668,1775646640973,-297.216201,0.00010877,2]
[420065669,1775646640983,-160.0,0.00010877,2]
[420065670,1775646640994,-566.710031,0.00010877,2]
[420065671,1775646641005,-973.420062,0.00010877,2]
[420065672,1775646641015,-230.56772,0.00010877,2]
[420065673,1775646641025,-923.77800917,0.000109,2]
[420065674,1775646641036,-923.77800911,0.000109,2]
[420065675,1775646641046,-923.77800911,0.000109,2]
[420065676,1775646641057,-517.45482461,0.00011064,2]
[420065677,1775646641067,-8521.1346829,0.00011099,2]
[420065678,1775646641077,-8521.13468282,0.00011099,2]
[420065679,1775646641087,-8521.13468282,0.00011099,2]
[420065680,1775646641098,-8521.13468282,0.00011099,2]
[420065681,1775646641108,-8521.13468282,0.00011099,2]
[420065682,1775646641118,-8521.13468282,0.00011099,2]
[420065683,1775646641129,-8521.13468282,0.00011099,2]
[420065684,1775646641139,-8521.13468282,0.00011099,2]
[420065685,1775646641149,-8521.13468282,0.00011099,2]
[420065686,1775646641159,-8521.13468282,0.00011099,2]
[420065687,1775646641169,-7831.37132005,0.00011099,2]
[420065688,1775646641180,-7831.37131997,0.00011099,2]
[420065689,1775646641190,-7831.37131997,0.00011099,2]
[420065690,1775646641201,-7831.37131997,0.00011099,2]
[420065691,1775646641211,-7831.37131997,0.00011099,2]
[420065692,1775646641222,-7831.37131997,0.00011099,2]
[420065693,1775646641231,-7831.37131997,0.00011099,2]
[420065694,1775646641242,-7831.37131997,0.00011099,2]
[420065695,1775646641253,-7831.37131997,0.00011099,2]
[420065696,1775646641263,-7831.37131997,0.00011099,2]
[420065697,1775646641273,-1734.0,0.0001126,5]
[420065698,1775646641284,-240.14810288,0.00011274,2]
[420065699,1775646641294,-160.0,0.00011277,2]
[420065700,1775646641305,-170.083338,0.00011277,2]
[420065702,1775646641316,-180.166677,0.00011277,2]
[420065704,1775646641326,-160.0,0.00011277,2]
[420065706,1775646641337,-891.77669,0.00011277,2]
[420065708,1775646641348,-1623.55338,0.00011277,2]
[420065710,1775646641358,-160.0,0.00011281,2]
[420065712,1775646641368,-458.656484,0.00011281,2]
[420065713,1775646641378,-757.312968,0.00011281,2]
[420065714,1775646641389,-160.0,0.00011281,2]
[420065715,1775646641399,-163.861259,0.00011281,2]
[420065716,1775646641410,-167.722518,0.00011281,2]
[420065717,1775646641421,-772.786406,0.00011421,2]
[420065718,1775646641431,-823.0,0.00011478,2]
[420065719,1775646641442,-3292.0,0.00011478,2]
[420065720,1775646641453,-6606.39,0.00011507,2]
[420065721,1775646641462,-677.85780487,0.00011511,2]
[420065722,1775646641472,-250.0,0.00011512,2]
[420065723,1775646641483,-923.77800911,0.00011575,2]
[420065724,1775646641493,-736.0,0.00011652,2]
[420065725,1775646641504,-198.9668,0.000118,2]
[420065726,1775646641514,-163.898492,0.00011814,2]
[420065727,1775646641524,-231.931825,0.00011841,2]
[420065728,1775646641538,-1216.059122,0.00011841,2]
[420065729,1775646641549,-625.44066,0.00011845,2]
[420065730,1775646641559,-223.447171,0.00011845,2]
[420065731,1775646641570,-150.0,0.00011879,2]
[420065732,1775646641581,-150.0,0.00011879,2]
[420065733,1775646641591,-578.20924308,0.0001198,2]
[420065734,1775646641602,-500.0,0.0001198,2]
[420065735,1775646641612,-181.08010149,0.0001198,2]
[420065736,1775646641622,-623.58710448,0.0001198,2]
[420065737,1775646641633,-151.0,0.0001198,2]
[420065738,1775646641644,-1235.18214925,0.0001198,2]
[420065739,1775646641654,-200.0,0.0001198,2]
[420065740,1775646641664,-591.41950389,0.0001198,2]
[420065741,1775646641675,-170.0,0.0001198,2]
[420065742,1775646641686,-170.0,0.0001198,2]
[420065743,1775646641696,-170.0,0.0001198,2]
[420065744,1775646641706,-170.0,0.0001198,2]
[420065745,1775646641717,-170.0,0.0001198,2]
[420065746,1775646641727,-170.0,0.0001198,2]
[420065747,1775646641738,-170.0,0.0001198,2]
[420065748,1775646641749,-170.0,0.0001198,2]
[420065749,1775646641759,-170.0,0.0001198,2]
[420065750,1775646641769,-170.0,0.0001198,2]
[420065751,1775646641779,-170.0,0.0001198,2]
[420065752,1775646641789,-170.0,0.0001198,2]
[420065753,1775646641799,-170.0,0.0001198,2]
[420065754,1775646641809,-170.0,0.0001198,2]
[420065755,1775646641819,-170.0,0.0001198,2]
[420065756,1775646641829,-379.07938652,0.00011984,2]
[420065757,1775646641838,-9891.79784251,0.00012,7]
[420065758,1775646641848,-150.0,0.00012014,2]
[420065759,1775646641858,-500.0,0.00012035,2]
[420065760,1775646641868,-151.0,0.00012035,2]
[420065761,1775646641877,-45025.43,0.00012055,2]
[420065762,1775646641888,-500.0,0.0001209,2]
[420065763,1775646641898,-151.0,0.0001209,2]
[420065764,1775646641908,-500.0,0.00012145,2]
[420065765,1775646641918,-151.0,0.00012145,2]
[420065766,1775646641929,-342.85235814,0.000122,2]
[420065767,1775646641939,-500.0,0.000122,2]
[420065768,1775646641951,-151.0,0.000122,2]
[420065769,1775646641962,-500.0,0.00012255,2]
[420065770,1775646641972,-151.0,0.00012255,2]
[420065771,1775646641984,-500.0,0.0001231,2]
[420065772,1775646641995,-151.0,0.0001231,2]
[420065773,1775646642005,-250.79204366,0.0001235,2]
[420065774,1775646642016,-16083.0371967,0.0001235,2]
[420065775,1775646642027,-500.0,0.00012365,2]
[420065776,1775646642037,-151.0,0.00012365,2]
[420065777,1775646642048,-1000.0,0.00012376,2]
[420065778,1775646642058,-500.0,0.0001242,2]
[420065779,1775646642068,-151.0,0.0001242,2]
[420065780,1775646642079,-500.0,0.00012475,2]
[420065781,1775646642089,-151.0,0.00012475,2]
[420065782,1775646642099,-401.848931,0.00012509,2]
[420065783,1775646642109,-187.78006525,0.00012528,2]
[420065784,1775646642119,-1280.88388878,0.00012528,2]
[420065785,1775646642130,-200.0,0.00012528,2]
[420065786,1775646642140,-500.0,0.0001253,2]
[420065787,1775646642150,-151.0,0.0001253,2]
[420065788,1775646642160,-923.77800911,0.00012581,2]
[420065789,1775646642170,-500.0,0.00012585,2]
[420065790,1775646642181,-151.0,0.00012585,2]
[420065791,1775646642191,-1152.0,0.00012626,2]
[420065792,1775646642202,-4609.0,0.00012626,2]
[420065793,1775646642212,-500.0,0.0001264,2]
[420065794,1775646642223,-151.0,0.0001264,2]
[420065795,1775646642233,-500.0,0.00012695,2]
[420065796,1775646642243,-151.0,0.00012695,2]
[420065797,1775646642254,-500.0,0.0001275,2]
[420065798,1775646642264,-151.0,0.0001275,2]
[420065799,1775646642275,-1252.0,0.00012816,2]
[420065800,1775646642286,-632.350743,0.00012968,2]
[420065801,1775646642296,-325.229143,0.00012973,2]
[420065802,1775646642308,-81454.46287592,0.00012999,2]
[420065803,1775646642319,-250.0,0.00013,2]
[420065804,1775646642330,-3620.21391383,0.0001305,2]
[420065805,1775646642341,-194.72792766,0.00013076,2]
[420065806,1775646642353,-1328.27659266,0.00013076,2]
[420065807,1775646642364,-200.0,0.00013076,2]
[420065808,1775646642375,-506.0,0.000131,2]
[420065809,1775646642386,-150.0,0.0001318,2]
[420065812,1775646642919,-150.0,0.0001318,2]
[420065813,1775646642930,-150.0,0.0001318,2]
[420065814,1775646642941,-155.235029,0.00013182,2]
[420065815,1775646642951,-229.1528,0.000132,2]
[420065816,1775646642962,-160.0,0.00013266,2]
[420065817,1775646642972,-247.84704228,0.00013373,2]
[420065818,1775646642983,-201.16710883,0.00013425,2]
[420065819,1775646642992,-500.0,0.00013425,2]
[420065820,1775646643002,-500.0,0.00013425,2]
[420065821,1775646643012,-500.0,0.00013425,2]
[420065822,1775646643023,-644.57907854,0.00013425,2]
[420065823,1775646643033,-500.0,0.00013425,2]
[420065824,1775646643044,-500.0,0.00013425,2]
[420065825,1775646643055,-500.0,0.00013425,2]
[420065826,1775646643065,-500.0,0.00013425,2]
[420065827,1775646643076,-500.0,0.00013425,2]
[420065828,1775646643087,-434.47425874,0.00013425,2]
[420065829,1775646643097,-500.0,0.00013425,2]
[420065830,1775646643108,-500.0,0.00013425,2]
[420065831,1775646643119,-500.0,0.00013425,2]
[420065832,1775646643130,-274.1065221,0.00013425,2]
[420065833,1775646643140,-150.0,0.00013425,2]
[420065834,1775646643151,-150.0,0.00013425,2]
[420065835,1775646643161,-150.0,0.00013425,2]
[420065836,1775646643172,-150.0,0.00013425,2]
[420065837,1775646643183,-150.0,0.00013425,2]
[420065838,1775646643194,-174.61425545,0.00013425,2]
[420065839,1775646643204,-208.37237059,0.00013425,2]
[420065840,1775646643214,-500.0,0.00013425,2]
[420065841,1775646643225,-150.0,0.00013425,2]
[420065842,1775646643235,-500.0,0.00013425,2]
[420065843,1775646643245,-150.0,0.00013425,2]
[420065844,1775646643256,-500.0,0.00013425,2]
[420065845,1775646643267,-150.0,0.00013425,2]
[420065846,1775646643279,-150.0,0.00013425,2]
[420065847,1775646643290,-500.0,0.00013425,2]
[420065848,1775646643300,-150.0,0.00013425,2]
[420065849,1775646643312,-182.15202066,0.00013425,2]
[420065850,1775646643323,-256.56798922,0.00013425,2]
[420065851,1775646643333,-500.0,0.00013425,2]
[420065852,1775646643343,-500.0,0.00013425,2]
[420065853,1775646643353,-500.0,0.00013425,2]
[420065854,1775646643363,-500.0,0.00013425,2]
[420065855,1775646643374,-500.0,0.00013425,2]
[420065856,1775646643386,-500.0,0.00013425,2]
[420065857,1775646643397,-500.0,0.00013425,2]
[420065858,1775646643409,-500.0,0.00013425,2]
[420065859,1775646643422,-500.0,0.00013425,2]
[420065860,1775646643435,-500.0,0.00013425,2]
[420065861,1775646643446,-500.0,0.00013425,2]
[420065862,1775646643457,-500.0,0.00013425,2]
[420065863,1775646643467,-500.0,0.00013425,2]
[420065864,1775646643478,-500.0,0.00013425,2]
[420065865,1775646643489,-500.0,0.00013425,2]
[420065866,1775646643499,-399.40597196,0.00013425,2]
[420065867,1775646643509,-341.376807,0.00013425,2]
[420065868,1775646643519,-500.0,0.00013425,2]
[420065869,1775646643530,-165.86332065,0.00013425,2]
[420065870,1775646643541,-500.0,0.00013425,2]
[420065871,1775646643552,-500.0,0.00013425,2]
[420065873,1775646643562,-500.0,0.00013425,2]
[420065875,1775646643573,-500.0,0.00013425,2]
[420065877,1775646643584,-500.0,0.00013425,2]
[420065879,1775646643594,-500.0,0.00013425,2]
[420065881,1775646643605,-500.0,0.00013425,2]
[420065883,1775646643616,-500.0,0.00013425,2]
[420065885,1775646643626,-339.81765262,0.00013425,2]
[420065887,1775646643637,-500.0,0.00013425,2]
[420065889,1775646643647,-500.0,0.00013425,2]
[420065891,1775646643658,-500.0,0.00013425,2]
[420065893,1775646643670,-500.0,0.00013425,2]
[420065895,1775646643682,-388.39476597,0.00013425,2]
[420065897,1775646643693,-160.5097946,0.00013425,2]
[420065899,1775646643703,-150.0,0.00013425,2]
[420065901,1775646643714,-150.0,0.00013425,2]
[420065903,1775646643725,-150.0,0.00013425,2]
[420065905,1775646643736,-150.0,0.00013425,2]
[420065907,1775646643747,-150.0,0.00013425,2]
[420065909,1775646643758,-150.0,0.00013425,2]
[420065911,1775646643769,-150.0,0.00013425,2]
[420065913,1775646643780,-150.0,0.00013425,2]
[420065915,1775646643791,-176.0009961,0.00013425,2]
[420065917,1775646643801,-150.0,0.00013425,2]
[420065919,1775646643812,-150.0,0.00013425,2]
[420065921,1775646643822,-185.23665201,0.00013425,2]
[420065923,1775646643833,-150.88467267,0.00013425,2]
[420065925,1775646643844,-287.13980161,0.00013425,2]
[420065927,1775646643854,-595.10163207,0.00013425,2]
[420065929,1775646643864,-500.0,0.00013425,2]
[420065930,1775646643875,-500.0,0.00013425,2]
[420065931,1775646643887,-500.0,0.00013425,2]
[420065932,1775646643898,-528.23575097,0.00013425,2]
[420065933,1775646643908,-500.0,0.00013425,2]
[420065934,1775646643918,-500.0,0.00013425,2]
[420065935,1775646643930,-500.0,0.00013425,2]
[420065936,1775646643941,-500.0,0.00013425,2]
[420065937,1775646643952,-500.0,0.00013425,2]
[420065938,1775646643963,-500.0,0.00013425,2]
[420065939,1775646643975,-500.0,0.00013425,2]
[420065940,1775646643987,-208.03469882,0.00013425,2]
[420065941,1775646644003,-500.0,0.00013425,2]
[420065942,1775646644014,-500.0,0.00013425,2]
[420065943,1775646644025,-507.0,0.00013425,2]
[420065944,1775646644036,-500.0,0.00013425,2]
[420065945,1775646644048,-361.74732129,0.00013425,2]
[420065946,1775646644059,-507.0,0.00013425,2]
[420065947,1775646644071,-507.0,0.00013425,2]
[420065948,1775646644082,-507.0,0.00013425,2]
[420065949,1775646644093,-507.0,0.00013425,2]
[420065950,1775646644103,-507.0,0.00013425,2]
[420065951,1775646644114,-507.0,0.00013425,2]
[420065953,1775646644124,-507.0,0.00013425,2]
[420065954,1775646644135,-507.0,0.00013425,2]
[420065955,1775646644146,-507.0,0.00013425,2]
[420065956,1775646644156,-507.0,0.00013425,2]
[420065958,1775646644167,-507.0,0.00013425,2]
[420065959,1775646644177,-507.0,0.00013425,2]
[420065960,1775646644188,-507.0,0.00013425,2]
[420065961,1775646644196,-507.0,0.00013425,2]
[420065962,1775646644208,-507.0,0.00013425,2]
[420065963,1775646644219,-507.0,0.00013425,2]
[420065964,1775646644229,-507.0,0.00013425,2]
[420065965,1775646644239,-507.0,0.00013425,2]
[420065966,1775646644250,-507.0,0.00013425,2]
[420065967,1775646644260,-507.0,0.00013425,2]
[420065968,1775646644270,-507.0,0.00013425,2]
[420065969,1775646644280,-507.0,0.00013425,2]
[420065970,1775646644291,-528.0,0.00013425,2]
[420065971,1775646644301,-150.0,0.00013425,2]
[420065972,1775646644312,-150.0,0.00013425,2]
[420065973,1775646644323,-150.0,0.00013425,2]
[420065974,1775646644333,-150.0,0.00013425,2]
[420065975,1775646644343,-245.51112262,0.00013425,2]
[420065976,1775646644354,-150.0,0.00013425,2]
[420065977,1775646644364,-150.0,0.00013425,2]
[420065978,1775646644375,-637.0,0.00013425,2]